Cogmind - Beta 9.3 @@@ ROGUE MODE // 2019.12.27 @ 16:14:03 Player: Andru7428 Result: Self-destructed Performance ------------- Evolutions (7) 3500 Regions Visited (21) 4200 Robots Destroyed (218) 1090 Value Destroyed (9103) 9103 Prototype IDs (38) 760 Alien Tech Used (3) 600 Bonus (7337) 7337 TOTAL SCORE: 26590 Bonus ------- Triggered High Security 1000 High Alert Combat Kills 2767 Follower Combat Kills 5141 Network Hubs Disabled 200 Met Imprinter 300 Was Imprinted 300 Met Zhirov 300 Built Enhanced Grunts 300 A7 Reached Mainframe 300 Friendly Fire -3271 Cogmind --------- Core Integrity 987/1300 Matter 114/300 Energy 100/100 System Corruption 8% Temperature Cool (-182) Movement Walking (120) Location -3/Research Parts ------- > --- POWER (2) -------- (None) > --- PROPULSION (5) --- Myomer Leg Advanced Myomer Leg > --- UTILITY (10) ----- Advanced Cryofiber Web Experimental Heat Sink Large Storage Unit Advanced Targeting Computer > --- WEAPON (4) ------- (None) > --- INVENTORY (10) --- Myomer Leg Myomer Leg Advanced Myomer Leg Advanced Myomer Leg Improved Matter Compressor (300) Variable Charge Gun Compact Ion Cannon Coil Gun Hypervelocity Coil Gun Peak State ------------ > --- POWER ------------ Fusion Reactor Light Quantum Reactor > --- PROPULSION ------- Myomer Leg Myomer Leg Advanced Myomer Leg Zionite Composite Leg II Zionite Composite Leg II > --- UTILITY ---------- Advanced Cryofiber Web Advanced Heat Sink Experimental Heat Sink Advanced Cooling System Large Storage Unit Zionite Biocell Advanced Targeting Computer Improved Particle Charger Layered Medium Armor Plating Advanced Powered Armor > --- WEAPON ----------- Zionite Laser-M HERF Cannon Nova Cannon Enhanced Gauss Cannon > --- INVENTORY -------- Advanced Myomer Leg Advanced Myomer Leg Improved Matter Compressor Improved Arc Thrower Variable Charge Gun Heavy Plasma Cannon Compact Ion Cannon Matter Neutralizer Hypervelocity Coil Gun Long-range Missile Launcher [Rating: 142] Favorites ----------- Power Fission Core Engine Improved Deuterium Engine Power Core Fission Core Reactor Fusion Reactor Propulsion Carbon-fiber Leg Leg Carbon-fiber Leg Utility Medium Storage Unit Device Advanced Heat Sink Storage Medium Storage Unit Processor Advanced Targeting Computer Hackware System Shield Protection Makeshift Armor Plating Weapon Heavy Assault Rifle Energy Gun Improved Medium Laser Energy Cannon Advanced Plasma Cannon Ballistic Gun Heavy Assault Rifle Ballistic Cannon Enhanced Gauss Cannon Launcher Long-range Missile Launcher Slashing Weapon Ripper Build | -11 -10 -10 -9 -8 -7 -7 -7 -7 -6 -6 -6 -6 -6 -6 -5 -5 -5 -5 -4 -4 -3 ------- Run | Scr Mat Min Mat Mat Fac Low Low Zio Pro Fac Ext Cet Arc Hub Fac Upp Upp Zhi Pro Fac Res Slots Evolved 14 | . . . 2 2 2 . . . . 2 . . . . 2 . . . . 2 2 Power 1 | . . . . . . . . . . . . . . . 1 . . . . . . Propulsion 3 | . . . 1 1 . . . . . 1 . . . . . . . . . . . Utility 8 | . . . . 1 2 . . . . 1 . . . . . . . . . 2 2 Weapon 2 | . . . 1 . . . . . . . . . . . 1 . . . . . . Parts Attached 287 | 6 15 6 11 17 10 5 7 5 2 72 12 7 . 9 37 6 1 6 1 28 24 Power 32 | 1 2 3 3 3 . 1 . 1 1 4 . . . 1 4 1 . 1 . 4 2 Engine 16 | 1 2 2 2 3 . 1 . 1 . 3 . . . 1 . . . . . . . Core 9 | . . 1 1 . . . . . 1 1 . . . . 3 1 . . . 1 . Reactor 7 | . . . . . . . . . . . . . . . 1 . . 1 . 3 2 Propulsion 75 | 2 3 1 3 7 2 . 2 . 1 20 5 . . 5 11 . . 1 . 7 5 Treads . | . . . . . . . . . . . . . . . . . . . . . . Leg 75 | 2 3 1 3 7 2 . 2 . 1 20 5 . . 5 11 . . 1 . 7 5 Wheel . | . . . . . . . . . . . . . . . . . . . . . . Hover . | . . . . . . . . . . . . . . . . . . . . . . Flight . | . . . . . . . . . . . . . . . . . . . . . . Utility 78 | 1 4 2 1 3 3 . 1 . . 18 2 4 . 1 12 4 1 4 . 13 4 Device 38 | . 1 2 1 2 2 . . . . 7 1 2 . . 6 2 1 3 . 7 1 Storage 9 | 1 3 . . 1 . . . . . 1 . . . . 1 . . 1 . . 1 Processor 4 | . . . . . . . . . . 2 . . . . . . . . . 2 . Hackware 1 | . . . . . . . . . . . . . . . . . . . . . 1 Protection 26 | . . . . . 1 . 1 . . 8 1 2 . 1 5 2 . . . 4 1 Artifact . | . . . . . . . . . . . . . . . . . . . . . . Weapon 102 | 2 6 . 4 4 5 4 4 4 . 30 5 3 . 2 10 1 . . 1 4 13 Energy Gun 21 | 1 2 . 1 . . 2 1 1 . 6 1 . . 1 2 . . . . 1 2 Energy Cannon 35 | . . . 1 3 4 2 1 . . 8 1 1 . 1 5 1 . . . 3 4 Ballistic Gun 32 | 1 4 . 2 1 1 . 1 2 . 12 1 1 . . 3 . . . . . 3 Ballistic Cannon 7 | . . . . . . . . . . 2 1 1 . . . . . . 1 . 2 Launcher 4 | . . . . . . . . . . 1 1 . . . . . . . . . 2 Special Weapon . | . . . . . . . . . . . . . . . . . . . . . . Impact Weapon . | . . . . . . . . . . . . . . . . . . . . . . Slashing Weapon 3 | . . . . . . . 1 1 . 1 . . . . . . . . . . . Piercing Weapon . | . . . . . . . . . . . . . . . . . . . . . . Special Melee Weapon . | . . . . . . . . . . . . . . . . . . . . . . Unidentified Prototypes 27 | . . . 1 . . 1 . . . 8 . 1 . . 5 1 . 5 . 3 2 Parts Lost 69 | . 5 . 3 . 3 2 4 . . 11 6 . . 3 8 4 . . 1 2 17 Power 8 | . 1 . 1 . . . . . . . . . . 1 1 1 . . . 1 2 Propulsion 15 | . 1 . 1 . . . 2 . . 4 3 . . . 3 . . . . . 1 Utility 20 | . . . . . . . 1 . . 3 1 . . 1 3 2 . . 1 1 7 Weapon 26 | . 3 . 1 . 3 2 1 . . 4 2 . . 1 1 1 . . . . 7 Highest Loss Streak 10 | . 2 . 2 . 2 2 2 . . 4 3 . . 3 5 4 . . 1 1 10 Average Slot Usage (%) 98 | . 87 100 100 99 95 99 99 99 100 99 99 99 100 99 98 98 100 99 98 98 96 Engine 3 | . 13 13 8 9 7 7 7 7 . 4 . . . . . . . . . . . Core 2 | . . . 2 . . . . . 6 1 6 6 6 5 7 6 11 6 5 3 . Reactor 1 | . . . . . . . . . . . . . . . 1 3 . 3 5 6 8 Leg 30 | . 27 28 33 36 30 30 29 30 30 32 32 33 33 33 28 29 29 29 29 25 22 Device 14 | . 3 14 11 8 16 15 15 15 15 13 13 12 13 12 10 16 17 16 17 17 21 Storage 11 | . 14 14 11 18 15 15 15 15 15 13 13 13 13 13 11 9 5 5 5 5 8 Processor 1 | . . . . . . . . . . . 6 . . . . . . . . 9 4 Protection 7 | . . . . . 1 7 7 7 7 11 5 11 13 13 10 6 11 11 9 7 8 Energy Gun 3 | . 9 . . . . . 7 6 7 5 3 . . 2 2 . . . . . 2 Energy Cannon 9 | . . . 10 10 15 14 5 . . 5 4 6 6 5 11 18 23 23 17 15 9 Ballistic Gun 7 | . 17 28 22 16 7 7 7 13 15 7 9 6 6 6 7 3 . . . . . Ballistic Cannon 1 | . . . . . . . . . . . . 5 6 3 . . . . 5 5 3 Naked Turns . | . . . . . . . . . . . . . . . . . . . . . . Heaviest Build 117 | 10 25 20 27 42 51 51 48 43 43 66 60 65 65 67 87 81 70 77 82 107 117 Greatest Support 136 | 20 20 20 30 50 55 55 55 55 60 100 100 95 95 100 100 95 95 110 110 123 136 Greatest Overweight (x) 1 | . 1 . . . . . . . . . . . . . 1 . . . . 1 . Average Overweight (x) . | . . . . . . . . . . . . . . . . . . . . . . Largest Inventory Capacity 14 | 6 12 8 8 12 12 12 12 12 12 14 14 14 14 14 14 14 10 10 10 10 10 Average Capacity 11 | 5 6 8 8 11 12 12 12 12 12 12 14 14 14 14 14 12 10 10 10 10 10 Most Carried 14 | 4 8 8 8 12 12 12 12 12 12 14 14 14 14 14 14 14 10 10 10 10 10 Average Carried 11 | 2 5 8 7 10 11 11 11 12 11 11 13 13 14 13 13 12 10 9 10 9 9 Final Capacity 14 | 6 8 8 8 12 12 12 12 12 12 14 14 14 14 14 14 10 10 10 10 10 10 Final Carried 14 | 4 8 8 8 12 12 11 12 12 12 14 14 14 14 12 14 10 10 10 10 10 9 Class Distribution -------------------- 46% | Messiah-Tank 16% | Messiah-Gunner 15% | Scavenger-Tank 6% | Messiah-Mutant 5% | Mutant 3% | Gunner Dominant Class ---------------- Mutant | -10/Materials Mutant | -10/Mines Gunner | -9/Materials Gunner | -8/Materials Scavenger-Skirmisher | -7/Factory Scavenger-Tank | -7/Lower Caves Scavenger-Tank | -7/Lower Caves Scavenger-Tank | -7/Zion Messiah-Tank | -6/Proximity Caves Messiah-Tank | -6/Factory Messiah-Gunner | -6/Extension Messiah-Tank | -6/Cetus Messiah-Tank | -6/Archives Messiah-Tank | -6/Hub_04(d) Messiah-Tank | -5/Factory Messiah-Tank | -5/Upper Caves Messiah-Tank | -5/Upper Caves Messiah-Tank | -5/Zhirov Messiah-Tank | -4/Proximity Caves Messiah-Gunner | -4/Factory Messiah-Gunner | -3/Research Resources | -11 -10 -10 -9 -8 -7 -7 -7 -7 -6 -6 -6 -6 -6 -6 -5 -5 -5 -5 -4 -4 -3 ----------- Run | Scr Mat Min Mat Mat Fac Low Low Zio Pro Fac Ext Cet Arc Hub Fac Upp Upp Zhi Pro Fac Res Matter Collected 5936 | 239 99 299 153 318 281 62 116 47 47 1142 462 76 104 200 475 354 75 380 138 480 389 Remotely . | . . . . . . . . . . . . . . . . . . . . . . Salvage Created 10503 | . 364 310 256 559 796 130 249 . 65 2003 313 28 . 936 1198 223 . 422 440 885 1326 Parts 498 | . 25 29 13 32 30 7 9 . 3 103 17 3 . 40 50 8 . 3 12 46 68 Haulers Intercepted 3 | . . . . . 1 . . . . . . . . 2 . . . . . . . Recyclers Shooed 7 | . . . . 1 2 . . . . 2 2 . . . . . . . . . . Parts Field Recycled . | . . . . . . . . . . . . . . . . . . . . . . Retrieved Matter . | . . . . . . . . . . . . . . . . . . . . . . Parts Self-Destructed 61 | . . . . . . 3 7 . 17 . . . . . . 15 . 2 17 . . Prevented 3 | . . . . . . . 2 . 1 . . . . . . . . . . . . Kills | -11 -10 -10 -9 -8 -7 -7 -7 -7 -6 -6 -6 -6 -6 -6 -5 -5 -5 -5 -4 -4 -3 ------- Run | Scr Mat Min Mat Mat Fac Low Low Zio Pro Fac Ext Cet Arc Hub Fac Upp Upp Zhi Pro Fac Res Combat Hostiles Destroyed 166 | . 13 12 5 8 9 2 4 . 1 32 9 1 . 2 17 4 . . 8 14 25 Melee 3 | . . . . . . . . . . 1 . . . . . . . . . 1 1 Guns 70 | . 12 12 4 4 1 2 3 . 1 18 3 . . . 7 . . . . . 3 Cannons 67 | . . . 1 3 8 . 1 . . 9 2 1 . . 8 4 . . 8 9 13 AOE 21 | . 1 . . 1 . . . . . 4 3 . . 1 . . . . . 3 8 Classes Destroyed 19 | . 2 1 2 2 2 1 1 . . 5 . . . . 1 . . . . 1 1 Worker 17 | . . 1 . 1 1 . . . . 3 . . . 3 . . . . . . 8 Builder 8 | . . . . . . . . . . 2 1 . . 3 . . . . . . 2 Tunneler 1 | . . . . . . . . . . 1 . . . . . . . . . . . Hauler 3 | . . . . . 1 . . . . . . . . 2 . . . . . . . Recycler 6 | . . . . 1 2 . . . . 2 . . . . . . . . . . 1 Drone 2 | . . . . . . . . . . 2 . . . . . . . . . . . Watcher 7 | . . . 1 1 1 . . . . 3 . . . . . . . . . 1 . Swarmer 36 | . 6 8 . . . . . . . 7 5 . . . . . . . 2 2 6 Saboteur 3 | . . . . . . . . . . 1 . . . . . . . . . 1 1 Grunt 66 | . 7 4 3 5 6 . 1 . 1 12 3 . . . 8 4 . . 4 2 6 Brawler 2 | . . . . . . . 1 . . 1 . . . . . . . . . . . Duelist 3 | . . . . . . . . . . 1 1 . . . . . . . . . 1 Protector 3 | . . . . . . . . . . . . . . . 2 . . . . . 1 Sentry 20 | . . . 2 2 1 . . . . 4 . . . 2 4 . . . 1 3 1 Hunter 14 | . . . . 1 1 1 1 . . 3 . . . . . . . . . 3 4 Programmer 16 | . . . . . 1 . . . . 3 . 1 . . 3 . . . 1 3 4 Behemoth 1 | . . . . . . . . . . . . . . . . . . . . . 1 Enhanced Grunt 3 | . . . . . . . . . . . . . . 3 . . . . . . . Z-Courier 1 | . . . . . . . . . . . . . . 1 . . . . . . . Z-Heavy 1 | . . . . . . . . . . . . . . . . . . . . 1 . Thug 1 | . . . . . . . . . . . 1 . . . . . . . . . . Guerrilla 2 | . . . . . . . . . . . . . . 2 . . . . . . . Mutant 2 | . . . . . . 1 1 . . . . . . . . . . . . . . Best Kill Streak 18 | . 6 4 3 3 5 1 1 . 1 6 5 1 . 10 5 3 . . 3 2 18 Combat Bots Only 10 | . 6 3 3 3 3 1 1 . 1 4 4 1 . 2 5 3 . . 3 2 10 Max Kills in Single Turn 9 | . 2 1 1 2 1 1 1 . 1 4 4 1 . 9 1 1 . . 1 2 5 Gunslinging 1 | . 1 . . . . . . . . . . . . . . . . . . . . Exploded 4 | . 1 . . 1 . . . . . 2 3 . . 1 . . . . . 2 4 Melee 1 | . . . . . . . . . . 1 . . . . . . . . . 1 1 Uniques/NPCs Destroyed . | . . . . . . . . . . . . . . . . . . . . . . Combat | -11 -10 -10 -9 -8 -7 -7 -7 -7 -6 -6 -6 -6 -6 -6 -5 -5 -5 -5 -4 -4 -3 -------- Run | Scr Mat Min Mat Mat Fac Low Low Zio Pro Fac Ext Cet Arc Hub Fac Upp Upp Zhi Pro Fac Res Damage Taken 16612 | . 594 536 218 414 1039 106 568 . 92 3149 1681 109 . 1347 1679 489 . . 433 1002 3156 Core 1566 | . 109 121 15 48 176 . 40 . . 305 120 . . 109 137 . . . . 73 313 Absorbed by Shields 370 | . . . . . . . . . . . 286 84 . . . . . . . . . Core Remaining (%) 71 | 100 . 8 96 91 . . . . 69 . . . . 37 . . . . 78 93 . Volleys Fired 541 | . 37 30 14 27 40 6 22 . 3 111 37 11 . 24 47 11 . 23 19 40 39 Largest 4 | . 2 2 3 3 3 3 3 . 3 3 3 3 . 3 4 4 . 1 4 4 4 Hottest 368 | . 60 46 102 102 146 146 142 . 107 230 185 160 . 160 311 368 . 90 335 335 350 Shots Fired 1500 | . 62 60 42 79 90 16 65 . 9 302 105 25 . 55 179 32 . 23 76 134 146 Gun 737 | . 62 60 28 52 29 6 49 . 9 211 75 10 . 27 92 3 . . . . 24 Cannon 750 | . . . 14 27 61 10 16 . . 89 27 15 . 28 87 29 . 23 76 134 114 Launcher 13 | . . . . . . . . . . 2 3 . . . . . . . . . 8 Special . | . . . . . . . . . . . . . . . . . . . . . . Kinetic 616 | . 35 60 28 52 29 5 22 . 6 129 52 17 . 21 63 3 . . 19 30 45 Thermal 670 | . 25 . . . 32 6 27 . 3 143 50 8 . 23 90 29 . 23 57 77 77 Explosive 13 | . . . . . . . . . . 2 3 . . . . . . . . . 8 Electromagnetic 201 | . 2 . 14 27 29 5 16 . . 28 . . . 11 26 . . . . 27 16 Robot Hit Streak 18 | . 9 5 8 10 18 5 16 . 10 17 7 2 . 5 12 5 . 11 13 13 14 Robot Miss Streak 18 | . 4 2 3 2 5 3 2 . 2 18 6 3 . 3 4 1 . 1 3 6 5 Penetration Max 2 | . . . . . . . . . . 1 2 . . 1 1 . . . . 1 1 Secondary Targets 8 | . 1 2 . . . . . . 1 4 . . . . . . . . . . . Max Gunslinging Chain 1 | . 1 1 . . . . . . 1 1 . . . . . . . . . . . Shots Hit Robots 934 | . 39 38 30 52 64 10 51 . 8 194 55 9 . 29 113 16 . 13 47 78 88 Core Hits 475 | . 20 15 11 21 26 5 12 . 6 125 24 7 . 31 44 6 . 5 14 28 75 Critical Hits 26 | . 1 2 1 . 1 . . . . 1 4 . . . 5 . . . 3 6 2 Critical Kills 8 | . . 1 . . 1 . . . . . 1 . . . 1 . . . . 3 1 Critical Parts Destroyed 14 | . 1 1 1 . . . . . . 1 3 . . . 3 . . . 2 1 1 Melee Attacks 41 | . . . . . . . 1 39 . 1 . . . . . . . . . . . Impact . | . . . . . . . . . . . . . . . . . . . . . . Slashing 41 | . . . . . . . 1 39 . 1 . . . . . . . . . . . Piercing . | . . . . . . . . . . . . . . . . . . . . . . Sneak Attacks . | . . . . . . . . . . . . . . . . . . . . . . Combat Hostiles . | . . . . . . . . . . . . . . . . . . . . . . Follow-up Attacks . | . . . . . . . . . . . . . . . . . . . . . . Damage Inflicted 32310 | . 500 494 687 1048 1822 212 889 . 153 5630 2944 353 . 2087 3262 521 . 452 1829 3569 5858 Guns 9607 | . 395 494 279 401 236 54 615 . 153 3267 1301 49 . 395 1319 36 . . . . 613 Cannons 15754 | . . . 299 557 1267 158 274 . . 1193 619 304 . 357 1943 485 . 452 1829 3281 2736 Explosions 6949 | . 105 . 109 90 319 . . . . 1170 1024 . . 1335 . . . . . 288 2509 Melee . | . . . . . . . . . . . . . . . . . . . . . . Ramming . | . . . . . . . . . . . . . . . . . . . . . . Kinetic 8300 | . 168 494 279 401 236 54 226 . 100 1820 1047 215 . 341 841 36 . . 396 540 1106 Thermal 15079 | . 258 . 109 90 876 47 389 . 53 3328 873 138 . 340 2021 485 . 452 1433 2217 1970 Explosive 3620 | . . . . . . . . . . 87 1024 . . . . . . . . . 2509 Electromagnetic 5311 | . 74 . 299 557 710 111 274 . . 395 . . . 1406 400 . . . . 812 273 Impact . | . . . . . . . . . . . . . . . . . . . . . . Slashing . | . . . . . . . . . . . . . . . . . . . . . . Piercing . | . . . . . . . . . . . . . . . . . . . . . . Highest Corruption 22 | . 1 1 . . 1 1 1 1 . 2 3 4 4 22 1 1 1 1 2 . 8 Average Corruption 1 | . 1 1 . . 1 1 1 1 . 1 2 3 4 4 1 1 1 1 1 . 2 Corruption Purged . | . . . . . . . . . . . . . . . . . . . . . . Effects 92 | . . 3 . . 4 5 4 . . 8 15 7 6 14 6 4 . 5 7 . 4 Message Errors 33 | . . 1 . . . 3 3 . . 2 5 . 2 5 2 2 . 4 4 . . Matter Fused 11 | . . . . . . . . . . . 3 2 2 3 . . . . . . 1 Heat Flow Errors 3 | . . . . . . . . . . 2 . 1 . . . . . . . . . Energy Discharges 16 | . . 1 . . 1 1 . . . 2 3 . . 2 1 2 . 1 2 . . Parts Rejected 1 | . . . . . . . . . . . . 1 . . . . . . . . . Data Loss (minor) 16 | . . . . . 1 1 1 . . 2 3 1 2 2 2 . . . 1 . . Targeting Errors 10 | . . 1 . . 2 . . . . . 1 2 . 1 1 . . . . . 2 Weapon Failures 2 | . . . . . . . . . . . . . . 1 . . . . . . 1 Overload Shots 21 | . . . . . . . . . . 4 16 1 . . . . . . . . . Effects 1 | . . . . . . . . . . . 1 . . . . . . . . . . Heat Surge 1 | . . . . . . . . . . . 1 . . . . . . . . . . Overflow Damage 1217 | . 6 . 6 22 23 . 7 . . 246 189 . . 125 9 1 . 91 45 173 274 Projectiles 640 | . . . 6 22 10 . 7 . . 70 62 . . 13 9 1 . 91 45 173 131 Explosions 577 | . 6 . . . 13 . . . . 176 127 . . 112 . . . . . . 143 Melee . | . . . . . . . . . . . . . . . . . . . . . . Knockbacks 12 | . . . . . . . . . . . 1 . . 1 . . . . 3 3 4 Impact . | . . . . . . . . . . . . . . . . . . . . . . Kinetic 11 | . . . . . . . . . . . 1 . . 1 . . . . 3 2 4 Secondary 1 | . . . . . . . . . . . . . . . . . . . . 1 . Self-Inflicted Damage 439 | . 76 . 23 . 41 . . . . 65 128 . . 106 . . . . . . . Shots 9 | . 2 . 1 . 1 . . . . 2 2 . . 1 . . . . . . . Rammed . | . . . . . . . . . . . . . . . . . . . . . . Targets Rammed 1 | . . . . . . . . . . . . . . 1 . . . . . . . Kicked 1 | . . . . . . . . . . . . . . 1 . . . . . . . Crushed . | . . . . . . . . . . . . . . . . . . . . . . Highest Temperature 316 | . 70 10 196 138 99 36 94 . 16 316 50 94 . 8 218 199 . 140 198 198 124 Average Temperature 78 | . 20 4 86 37 31 14 31 . 8 64 12 62 . 8 116 100 . 61 124 98 58 Received Heat Transfer 3054 | . 117 144 87 198 243 . 126 . 45 774 291 18 . 51 534 9 . . 42 102 273 Effects 1 | . . . . . . . . . . 1 . . . . . . . . . . . Energy Bleed 1 | . . . . . . . . . . 1 . . . . . . . . . . . Siege Activations . | . . . . . . . . . . . . . . . . . . . . . . Robots Corrupted 7 | . . . . . . . . . . . . . . 6 . . . . . 1 . Combat Hostiles 2 | . . . . . . . . . . . . . . 1 . . . . . 1 . Parts Fried 26 | . . . 3 2 5 1 . . . 3 . . . 7 1 . . . . 3 1 Impact Corruptions . | . . . . . . . . . . . . . . . . . . . . . . Robots Melted 3 | . . . . . . . . . . . 1 . . . 2 . . . . . . Combat Hostiles 3 | . . . . . . . . . . . 1 . . . 2 . . . . . . Parts Melted 35 | . 2 . . 1 2 . . . . 8 1 . . . 8 . . . 4 3 6 Heat Transferred 17124 | . 550 . 150 100 1151 74 851 . 111 3522 1124 185 . 364 2296 598 . 650 1577 1925 1896 Parts Sabotaged 11 | . . . . . . . . . . 3 . . . . . . . . . 4 4 Parts Stolen . | . . . . . . . . . . . . . . . . . . . . . . Parts Stripped . | . . . . . . . . . . . . . . . . . . . . . . Power Chain Reactions 10 | . 1 . 1 1 3 . . . . 2 . . . 1 . . . . . 1 . Missiles Intercepted . | . . . . . . . . . . . . . . . . . . . . . . Alert | -11 -10 -10 -9 -8 -7 -7 -7 -7 -6 -6 -6 -6 -6 -6 -5 -5 -5 -5 -4 -4 -3 ------- Run | Scr Mat Min Mat Mat Fac Low Low Zio Pro Fac Ext Cet Arc Hub Fac Upp Upp Zhi Pro Fac Res Peak Influence 1977 | . 369 296 244 400 165 . . . . 529 645 701 435 1652 1545 . . . . 1669 1977 Average Influence 542 | . 222 197 143 202 55 . . . . 335 466 545 427 559 1217 . . . . 595 1383 Maximum Alert Level 5 | . 1 1 1 2 . . . . . 2 2 3 2 5 4 . . . . 5 5 Low Security (%) 24 | 100 47 58 88 46 100 . . . . 13 . . . 3 . . . . . 34 . Level 1 26 | . 52 41 11 49 . . . . . 50 27 9 6 46 . . . . . 12 . Level 2 22 | . . . . 4 . . . . . 36 72 64 93 29 5 . . . . 12 . Level 3 7 | . . . . . . . . . . . . 25 . 9 26 . . . . 24 . Level 4 16 | . . . . . . . . . . . . . . 4 68 . . . . 12 78 Level 5 . | . . . . . . . . . . . . . . 7 . . . . . . 5 High Security 1 | . . . . . . . . . . . . . . . . . . . . 3 15 Max Security . | . . . . . . . . . . . . . . . . . . . . . . Squads Dispatched 49 | . 3 . 2 . 4 . . . . 10 1 . . 5 5 . . . . 10 9 Investigation 7 | . 1 . . . . . . . . 3 . . . 1 . . . . . 2 . Extermination 10 | . . . . . 1 . . . . 3 . . . . 2 . . . . 3 1 Reinforcement 16 | . 2 . 2 . 3 . . . . 3 1 . . 2 . . . . . 1 2 Assault 14 | . . . . . . . . . . 1 . . . 1 3 . . . . 4 5 Garrison 2 | . . . . . . . . . . . . . . 1 . . . . . . 1 Intercept . | . . . . . . . . . . . . . . . . . . . . . . Construction Impeded 8 | . . . . . 1 . . . . 2 1 . . 1 . . . . . 1 2 Haulers Reinforced 1 | . . . . . 1 . . . . . . . . . . . . . . . . Stealth | -11 -10 -10 -9 -8 -7 -7 -7 -7 -6 -6 -6 -6 -6 -6 -5 -5 -5 -5 -4 -4 -3 --------- Run | Scr Mat Min Mat Mat Fac Low Low Zio Pro Fac Ext Cet Arc Hub Fac Upp Upp Zhi Pro Fac Res Distress Signals 21 | . 2 . 3 1 1 . . . . 1 2 1 . 1 2 . . . . 4 3 Communications Jammed . | . . . . . . . . . . . . . . . . . . . . . . Distress Signals . | . . . . . . . . . . . . . . . . . . . . . . Times Spotted 396 | . 24 16 15 15 16 2 6 . 5 67 28 10 2 31 35 9 . . 22 47 46 Peak Tracking Total 14 | . 7 3 4 3 5 1 3 . 3 6 10 5 1 9 6 3 . . 5 7 14 Tactical Retreats 25 | . 2 2 1 1 2 . 1 . . 9 3 . . 1 1 . . . 2 . . Traps | -11 -10 -10 -9 -8 -7 -7 -7 -7 -6 -6 -6 -6 -6 -6 -5 -5 -5 -5 -4 -4 -3 ------- Run | Scr Mat Min Mat Mat Fac Low Low Zio Pro Fac Ext Cet Arc Hub Fac Upp Upp Zhi Pro Fac Res Traps Triggered 11 | . 1 . . 2 . . . . . 6 1 . . . 1 . . . . . . Indirectly . | . . . . . . . . . . . . . . . . . . . . . . Trap Hack Attempts . | . . . . . . . . . . . . . . . . . . . . . . Triggered . | . . . . . . . . . . . . . . . . . . . . . . Disarmed . | . . . . . . . . . . . . . . . . . . . . . . Reprogrammed . | . . . . . . . . . . . . . . . . . . . . . . Reused . | . . . . . . . . . . . . . . . . . . . . . . Traps Extracted . | . . . . . . . . . . . . . . . . . . . . . . Installed . | . . . . . . . . . . . . . . . . . . . . . . Triggered 4 | . . . . . . . 2 . 1 1 . . . . . . . . . . . Machines | -11 -10 -10 -9 -8 -7 -7 -7 -7 -6 -6 -6 -6 -6 -6 -5 -5 -5 -5 -4 -4 -3 ---------- Run | Scr Mat Min Mat Mat Fac Low Low Zio Pro Fac Ext Cet Arc Hub Fac Upp Upp Zhi Pro Fac Res Machines Disabled 69 | . 3 . . 1 . 1 . . . 9 5 3 1 20 8 1 . 1 . 13 3 Max in Single Turn 16 | . 3 . . 1 . 1 . . . 5 1 1 . 16 1 1 . 1 . 5 1 Garrison Access 3 | . . . . . . . . . . 2 . . . 1 . . . . . . . Network Hub 1 | . . . . . . . . . . . . . . 1 . . . . . . . Energy Cycler 1 | . . . . . . . . . . . 1 . . . . . . . . . . Machines Sabotaged . | . . . . . . . . . . . . . . . . . . . . . . Garrisons Compromised . | . . . . . . . . . . . . . . . . . . . . . . Overloaded Fab Kills . | . . . . . . . . . . . . . . . . . . . . . . Fab Network Shutdowns 1 | . . . . . . . . . . . . . . . 1 . . . . . . Hacking | -11 -10 -10 -9 -8 -7 -7 -7 -7 -6 -6 -6 -6 -6 -6 -5 -5 -5 -5 -4 -4 -3 --------- Run | Scr Mat Min Mat Mat Fac Low Low Zio Pro Fac Ext Cet Arc Hub Fac Upp Upp Zhi Pro Fac Res Machines Accessed 27 | . 1 . 3 4 . . 1 1 . 2 . . 1 1 1 2 . 9 . . 1 Terminals 8 | . 1 . 3 4 . . . . . . . . . . . . . . . . . Fabricators 2 | . . . . . . . . . . . . . . . 1 . . . . . 1 Repair Stations . | . . . . . . . . . . . . . . . . . . . . . . Recycling Units . | . . . . . . . . . . . . . . . . . . . . . . Scanalyzers . | . . . . . . . . . . . . . . . . . . . . . . Garrison Access 3 | . . . . . . . . . . 2 . . . 1 . . . . . . . Total Hacks 119 | . 3 . 8 16 . . 1 5 . 2 . . 25 2 5 2 . 48 . . 2 Successful 102 | . 2 . 3 9 . . 1 5 . 2 . . 25 . 3 2 . 48 . . 2 Failed 17 | . 1 . 5 7 . . . . . . . . . 2 2 . . . . . . Catastrophic 6 | . . . 3 3 . . . . . . . . . . . . . . . . . Database Lockouts . | . . . . . . . . . . . . . . . . . . . . . . Manual 126 | . 2 . 6 9 . . . 4 . 12 35 14 . 8 8 . . . . 18 10 Terminals 27 | . 3 . 8 16 . . . . . . . . . . . . . . . . . Fabricators 7 | . . . . . . . . . . . . . . . 5 . . . . . 2 Repair Stations . | . . . . . . . . . . . . . . . . . . . . . . Recycling Units . | . . . . . . . . . . . . . . . . . . . . . . Scanalyzers . | . . . . . . . . . . . . . . . . . . . . . . Garrison Access 4 | . . . . . . . . . . 2 . . . 2 . . . . . . . Terminal Hacks 89 | . 1 . 1 6 . . 1 5 . . . . 25 . . 2 . 48 . . . Record 62 | . . . . . . . . . . . . . 25 . . 1 . 36 . . . Part Schematic 9 | . . . . . . . . 5 . . . . . . . . . 4 . . . Robot Analysis 6 | . . . 1 1 . . . . . . . . . . . . . 4 . . . Prototype ID Bank 6 | . . . . 2 . . . . . . . . . . . . . 4 . . . Open Door 2 | . . . . . . . 1 . . . . . . . . 1 . . . . . Alert Level 1 | . . . . 1 . . . . . . . . . . . . . . . . . Unreport Threat 1 | . . . . 1 . . . . . . . . . . . . . . . . . Recall Investigation 1 | . 1 . . . . . . . . . . . . . . . . . . . . Hauler Manifests 1 | . . . . 1 . . . . . . . . . . . . . . . . . Fabricator Hacks 5 | . . . . . . . . . . . . . . . 3 . . . . . 2 Load Schematic 2 | . . . . . . . . . . . . . . . 1 . . . . . 1 Build 3 | . . . . . . . . . . . . . . . 2 . . . . . 1 Repair Station Hacks . | . . . . . . . . . . . . . . . . . . . . . . Recycling Unit Hacks . | . . . . . . . . . . . . . . . . . . . . . . Scanalyzer . | . . . . . . . . . . . . . . . . . . . . . . Garrison Access Hacks 2 | . . . . . . . . . . 2 . . . . . . . . . . . Seal Access 2 | . . . . . . . . . . 2 . . . . . . . . . . . Unauthorized Hacks 13 | . 2 . 5 6 . . . . . . . . . . . . . . . . . Terminals 6 | . 1 . 2 3 . . . . . . . . . . . . . . . . . Track 4 | . 1 . 1 2 . . . . . . . . . . . . . . . . . Assimilate 1 | . . . . 1 . . . . . . . . . . . . . . . . . Disrupt 1 | . . . 1 . . . . . . . . . . . . . . . . . . Fabricators . | . . . . . . . . . . . . . . . . . . . . . . Repair Stations . | . . . . . . . . . . . . . . . . . . . . . . Recycling Units . | . . . . . . . . . . . . . . . . . . . . . . Scanalyzers . | . . . . . . . . . . . . . . . . . . . . . . Garrison Access . | . . . . . . . . . . . . . . . . . . . . . . Data Cores Recovered . | . . . . . . . . . . . . . . . . . . . . . . Used . | . . . . . . . . . . . . . . . . . . . . . . Hacking Detections 11 | . 1 . 3 4 . . . . . . . . . 1 1 . . . . . 1 Full Trace Events . | . . . . . . . . . . . . . . . . . . . . . . Feedback Events . | . . . . . . . . . . . . . . . . . . . . . . Feedback Blocked . | . . . . . . . . . . . . . . . . . . . . . . Robot Schematics Acquired 8 | . . . . . . . . . . . 8 . . . . . . . . . . Robots Built 2 | . . . . . . . . . . . . . . . 2 . . . . . . Matter 252 | . . . . . . . . . . . . . . . 252 . . . . . . Time 134 | . . . . . . . . . . . . . . . 134 . . . . . . Total Robot Build Rating 8 | . . . . . . . . . . . . . . . 8 . . . . . . Part Schematics Acquired 25 | . . . . . . . . 5 . . 16 . . . . . . 4 . . . Parts Built 1 | . . . . . . . . . . . . . . . . . . . . . 1 Matter 234 | . . . . . . . . . . . . . . . . . . . . . 234 Time 58 | . . . . . . . . . . . . . . . . . . . . . 58 Total Part Build Rating 7 | . . . . . . . . . . . . . . . . . . . . . 7 Parts Repaired . | . . . . . . . . . . . . . . . . . . . . . . Time . | . . . . . . . . . . . . . . . . . . . . . . Parts Recycled . | . . . . . . . . . . . . . . . . . . . . . . Recycled Matter . | . . . . . . . . . . . . . . . . . . . . . . Retrieved Matter . | . . . . . . . . . . . . . . . . . . . . . . Retrieved Components . | . . . . . . . . . . . . . . . . . . . . . . Parts Scanalyzed . | . . . . . . . . . . . . . . . . . . . . . . Part Schematics Acquired . | . . . . . . . . . . . . . . . . . . . . . . Parts Damaged . | . . . . . . . . . . . . . . . . . . . . . . Bothacking | -11 -10 -10 -9 -8 -7 -7 -7 -7 -6 -6 -6 -6 -6 -6 -5 -5 -5 -5 -4 -4 -3 ------------ Run | Scr Mat Min Mat Mat Fac Low Low Zio Pro Fac Ext Cet Arc Hub Fac Upp Upp Zhi Pro Fac Res Used RIF Installer . | . . . . . . . . . . . . . . . . . . . . . . Robots Hacked . | . . . . . . . . . . . . . . . . . . . . . . Non-combat . | . . . . . . . . . . . . . . . . . . . . . . Combat . | . . . . . . . . . . . . . . . . . . . . . . Robot Hacks Applied . | . . . . . . . . . . . . . . . . . . . . . . Relay Couplers Released 2 | . . . . . . . . . . . . . . 2 . . . . . . . Machine Destruction 2 | . . . . . . . . . . . . . . 2 . . . . . . . Robots Rewired 11 | . . . . . . . 3 . . . 8 . . . . . . . . . . Allies Hacked . | . . . . . . . . . . . . . . . . . . . . . . Hacks Repelled . | . . . . . . . . . . . . . . . . . . . . . . Allies | -11 -10 -10 -9 -8 -7 -7 -7 -7 -6 -6 -6 -6 -6 -6 -5 -5 -5 -5 -4 -4 -3 -------- Run | Scr Mat Min Mat Mat Fac Low Low Zio Pro Fac Ext Cet Arc Hub Fac Upp Upp Zhi Pro Fac Res Total Allies 64 | . . . . 1 . . 3 13 . 4 15 8 . . 6 . . . . 7 7 Largest Group 16 | . . . . 1 1 . 3 16 15 12 9 16 16 13 4 1 1 1 1 5 9 Highest-Rated Group 965 | . . . . 10 10 . 93 482 451 386 405 965 965 713 390 171 171 171 171 562 646 Highest-Rated Ally 180 | . . . . 10 10 . 31 40 40 40 156 156 156 94 180 171 171 171 171 171 163 Zionite Dispatches 12 | . . . . . . . . . . 2 2 1 . . 2 . . . . 3 2 Heavy 2 | . . . . . . . . . . . . . . . . . . . . 2 . Light 2 | . . . . . . . . . . . . . . . 1 . . . . 1 . Recon 1 | . . . . . . . . . . 1 . . . . . . . . . . . Fire 2 | . . . . . . . . . . . 1 . . . . . . . . . 1 Hacker 2 | . . . . . . . . . . . . 1 . . . . . . . . 1 Hero 1 | . . . . . . . . . . . . . . . 1 . . . . . . Thermal Resupply 1 | . . . . . . . . . . 1 . . . . . . . . . . . Melee Resupply 1 | . . . . . . . . . . . 1 . . . . . . . . . . Total Orders 9 | . . . . . 4 . . . . 5 . . . . . . . . . . . STAY 2 | . . . . . 1 . . . . 1 . . . . . . . . . . . GOTO 1 | . . . . . 1 . . . . . . . . . . . . . . . . FOLLOW 4 | . . . . . 2 . . . . 2 . . . . . . . . . . . DROP 1 | . . . . . . . . . . 1 . . . . . . . . . . . EXPLORE 1 | . . . . . . . . . . 1 . . . . . . . . . . . Ally Attacks 725 | . . . . . . . . . 73 107 58 63 22 117 68 11 . . 21 118 67 Total Damage 23012 | . . . . . . . . . 1533 1959 1510 1470 669 3254 2115 431 . . 936 6570 2565 Kills 146 | . . . . . . . . . 10 10 16 10 5 24 13 3 . . 7 33 15 Allies Corrupted 4 | . . . . . . . . . . . . . . 4 . . . . . . . Allies Melted . | . . . . . . . . . . . . . . . . . . . . . . Intel | -11 -10 -10 -9 -8 -7 -7 -7 -7 -6 -6 -6 -6 -6 -6 -5 -5 -5 -5 -4 -4 -3 ------- Run | Scr Mat Min Mat Mat Fac Low Low Zio Pro Fac Ext Cet Arc Hub Fac Upp Upp Zhi Pro Fac Res Robot Analysis Total 6 | . . . 1 1 . . . . . . . . . . . . . 4 . . . Derelict Logs Recovered 11 | . . 1 . . . . 2 2 1 . . . . . . 3 . . 2 . . Drone Launches . | . . . . . . . . . . . . . . . . . . . . . . Drone Recoveries . | . . . . . . . . . . . . . . . . . . . . . . Zionite Intel Received 16 | . . . . . . . . . . 1 7 2 . 2 1 . . . . 2 1 Main Access 2 | . . . . . . . . . . . . 1 . . . . . . . 1 . Emergency Access 1 | . . . . . . . . . . . 1 . . . . . . . . . . Guard Positions 1 | . . . . . . . . . . . 1 . . . . . . . . . . Component Stockpiles 2 | . . . . . . . . . . . . . . 1 . . . . . 1 . Prototype Stockpiles 1 | . . . . . . . . . . . 1 . . . . . . . . . . Component Schematics 1 | . . . . . . . . . . . 1 . . . . . . . . . . Unaware Schematics 2 | . . . . . . . . . . . 2 . . . . . . . . . . Unaware Analyses 2 | . . . . . . . . . . . . 1 . 1 . . . . . . . Trap Installations 1 | . . . . . . . . . . . . . . . . . . . . . 1 Active Garrisons 1 | . . . . . . . . . . . . . . . 1 . . . . . . Depthwide Sectors/0 2 | . . . . . . . . . . 1 1 . . . . . . . . . . Exploration | -11 -10 -10 -9 -8 -7 -7 -7 -7 -6 -6 -6 -6 -6 -6 -5 -5 -5 -5 -4 -4 -3 ------------- Run | Scr Mat Min Mat Mat Fac Low Low Zio Pro Fac Ext Cet Arc Hub Fac Upp Upp Zhi Pro Fac Res Turns Passed 20636 | 71 544 500 361 608 924 1065 1033 2314 515 3337 846 343 295 670 1780 1029 439 508 1296 1342 816 Spaces Moved 13307 | 49 333 299 199 342 543 709 640 1755 377 2116 445 198 222 456 1045 653 331 349 920 852 474 Core 5 | 5 . . . . . . . . . . . . . . . . . . . . . Treads . | . . . . . . . . . . . . . . . . . . . . . . Legs 13302 | 44 333 299 199 342 543 709 640 1755 377 2116 445 198 222 456 1045 653 331 349 920 852 474 Wheels . | . . . . . . . . . . . . . . . . . . . . . . Hover . | . . . . . . . . . . . . . . . . . . . . . . Flight . | . . . . . . . . . . . . . . . . . . . . . . Fastest Speed 50 | 50 120 120 120 120 120 120 120 120 120 120 120 120 120 120 120 120 120 120 120 117 116 Average Speed 120 | 112 120 120 120 120 120 120 120 120 120 120 120 120 120 120 121 120 120 120 120 119 117 Slowest Speed 156 | 120 150 120 120 120 120 120 120 120 120 122 120 120 120 122 152 120 120 120 120 156 120 Overloaded Moves . | . . . . . . . . . . . . . . . . . . . . . . Propulsion Burnouts . | . . . . . . . . . . . . . . . . . . . . . . Robots Hopped . | . . . . . . . . . . . . . . . . . . . . . . Cave-ins Triggered 1 | . . . . . . . . . . . . . . 1 . . . . . . . Teleports 1 | . . . . . . . . . . . . . . . . . . 1 . . . Exploration Rate (%) 52 | 3 54 44 31 24 13 67 71 92 60 55 74 78 97 54 28 67 47 62 96 24 17 Regions Visited 21 Branch Regions 13 Pre-discovered Areas 26 | . . . . . . . 1 1 . 10 10 . . . . 1 . 3 . . . Known Exits Taken 3 | . . . . . . . . . . . . . . 1 . 1 . . . 1 . Unknown Exits Taken 18 | 1 1 1 1 1 1 1 1 1 1 1 1 1 1 . 1 . 1 1 1 . . Scrap Searched 19 | . . . . . . . 4 2 4 . . . . . . 2 3 . 4 . . Spaces Dug 49 | . . . . . . . 1 19 . 2 1 . . 3 3 1 . 9 . 10 . Terrain Destroyed 538 | . 1 . 1 5 13 . 1 19 . 72 50 3 . 158 25 12 . 9 24 81 64 Melee 21 | . . . . . . . 1 19 . 1 . . . . . . . . . . . Projectile 172 | . . . . . . . . . . 19 10 3 . 9 25 12 . 9 24 38 23 AOE 345 | . 1 . 1 5 13 . . . . 52 40 . . 149 . . . . . 43 41 Actions | -11 -10 -10 -9 -8 -7 -7 -7 -7 -6 -6 -6 -6 -6 -6 -5 -5 -5 -5 -4 -4 -3 --------- Run | Scr Mat Min Mat Mat Fac Low Low Zio Pro Fac Ext Cet Arc Hub Fac Upp Upp Zhi Pro Fac Res Total 16788 | 64 424 381 291 490 743 910 853 1904 433 2664 677 282 250 535 1447 875 373 415 1060 1082 635 Wait 2222 | . 10 40 55 73 144 188 168 103 48 269 120 61 29 37 275 197 41 25 121 141 77 Move 13286 | 48 332 298 198 341 542 708 639 1754 376 2115 444 197 221 455 1044 652 330 348 919 851 474 Hop . | . . . . . . . . . . . . . . . . . . . . . . Pick Up 155 | 10 18 1 7 14 4 2 6 . 1 45 9 3 . 2 18 4 . 2 . 2 7 Fast Attach 92 | . 1 2 3 6 3 . . 2 2 13 1 1 . 1 13 5 . 8 . 21 10 Attach 77 | 6 7 . 6 2 4 2 4 . . 20 6 1 . 2 10 1 . . . . 6 Detach 3 | . 1 . . . . . . . . . . . . . 1 . . 1 . . . Swap 121 | . 7 4 2 9 3 3 3 3 . 39 5 5 . 6 14 1 1 . 1 7 8 Drop 190 | . 11 6 6 18 3 1 1 3 3 51 5 3 . 7 25 4 1 8 . 20 14 Fire 541 | . 37 30 14 27 40 6 22 . 3 111 37 11 . 24 47 11 . 23 19 40 39 Melee 41 | . . . . . . . 1 39 . 1 . . . . . . . . . . . Ram . | . . . . . . . . . . . . . . . . . . . . . . Kick 1 | . . . . . . . . . . . . . . 1 . . . . . . . Crush . | . . . . . . . . . . . . . . . . . . . . . . Escape Stasis 1 | . . . . . . . . . . . 1 . . . . . . . . . . Rewire 58 | . . . . . . . 9 . . . 49 . . . . . . . . . . Trap . | . . . . . . . . . . . . . . . . . . . . . . Miscellaneous . | . . . . . . . . . . . . . . . . . . . . . . Route ------- -11/Scrapyard -10/Materials (discovered 3 exits: *Mat x2 / [*Min]) -10/Mines -9/Materials -8/Materials -7/Factory -7/Lower Caves -7/Lower Caves (discovered 2 exits: *Fac / *Zio) -7/Zion -6/Proximity Caves -6/Factory (discovered 6 exits: *Fac x4 / *Low / *Ext) -6/Extension (discovered 3 exits: *Fac x2 / *Cet) -6/Cetus (discovered 3 exits: Fac x2 / *Arc) -6/Archives (discovered 3 exits: *Fac / *Hub x2) -6/Hub_04(d) (discovered 4 exits: *Fac x4) -5/Factory (discovered 3 exits: *Fac x2 / *Upp) -5/Upper Caves -5/Upper Caves -5/Zhirov -4/Proximity Caves -4/Factory (discovered 4 exits: *Res x4) -3/Research (discovered 1 exit: Qua) History --------- Turn | Location | Event 4 | -11/Scrapyard | Discovered new exit (range 16) 72 | -11/Scrapyard | Entered Materials 318 | -10/Materials | Build established: Mutant 356 | -10/Materials | Discovered new exit (range 6) 409 | -10/Materials | Discovered new exit (range 15) 437 | -10/Materials | Discovered new exit (range 15) 616 | -10/Materials | Entered Mines 809 | -10/Mines | Core integrity fell below 50% 932 | -10/Mines | Learned Materials trap positions 1063 | -10/Mines | Core integrity fell below 20% 1080 | -10/Mines | Discovered new exit (range 9) 1116 | -10/Mines | Entered Materials 1116 | -9/Materials | Evolved 2 slots: Propulsion x1, Weapon x1 1117 | -9/Materials | Loaded intel: 28 trap records 1424 | -9/Materials | Build established: Gunner 1472 | -9/Materials | Discovered new exit (range 5) 1477 | -9/Materials | Entered another Materials area 1477 | -8/Materials | Evolved 2 slots: Propulsion x1, Utility x1 1936 | -8/Materials | Discovered new exit (range 15) 2085 | -8/Materials | Entered Factory 2085 | -7/Factory | Accompanied by 1 ally 2085 | -7/Factory | Evolved 2 slots: Utility x2 2430 | -7/Factory | Build established: Scavenger-Skirmisher 2861 | -7/Factory | Build established: Scavenger-Mutant 2990 | -7/Factory | Discovered new exit (range 13) 3009 | -7/Factory | Entered Lower Caves 3081 | -7/Lower Caves | Encountered a Warlord checkpoint 3298 | -7/Lower Caves | Build established: Scavenger-Tank 3899 | -7/Lower Caves | Discovered new exit (range 8) 3986 | -7/Lower Caves | Attacked by a delusional Derelict stockpiling parts 4074 | -7/Lower Caves | Entered another Lower Caves area 4310 | -7/Lower Caves | Discovered new exit (range 5) 4667 | -7/Lower Caves | Learned location of Zion (-7) 4906 | -7/Lower Caves | Attacked by a delusional Derelict stockpiling Unaware 5026 | -7/Lower Caves | Discovered new exit (range 14) 5035 | -7/Lower Caves | Learned location of 1 exit from Factory 5107 | -7/Lower Caves | Entered Zion 5107 | -7/Zion | Accompanied by 3 allies 5182 | -7/Zion | Discovered new exit (range 15) 5223 | -7/Zion | System corruption cleaned by Quarantine Array 5422 | -7/Zion | Learned 4 Factory zone layouts 5613 | -7/Zion | Received a visual enhancement algorithm 5763 | -7/Zion | Learned Factory stockpile data 5876 | -7/Zion | Gained Derelict followers 5919 | -7/Zion | Gained Derelict followers 6054 | -7/Zion | Visited the Megawrench Repair Shop 6054 | -7/Zion | Megawrench repaired 12 parts 6239 | -7/Zion | Imprinted 6241 | -7/Zion | Declared Zion's savior 6534 | -7/Zion | Build established: Messiah-Tank 7253 | -7/Zion | Build established: Messiah-Mutant 7421 | -7/Zion | Entered Proximity Caves 7421 | -6/Proximity Caves | Accompanied by 15 allies 7535 | -6/Proximity Caves | Learned Factory security intel 7569 | -6/Proximity Caves | Build established: Messiah-Tank 7888 | -6/Proximity Caves | Discovered new exit (range 14) 7936 | -6/Proximity Caves | Entered Factory 7936 | -6/Factory | Accompanied by 12 allies 7936 | -6/Factory | Evolved 2 slots: Propulsion x1, Utility x1 7937 | -6/Factory | Identified exit to Factory 8043 | -6/Factory | Retrieved Zion intel report: Depthwide Sectors/0 8613 | -6/Factory | Zion Recon squad teleported in 8685 | -6/Factory | Lost 4 parts (2n1u1w) 8708 | -6/Factory | Zion Thermal Resupply teleported in 8917 | -6/Factory | Allied Derelicts emerged from ambush trap array 8917 | -6/Factory | Discovered new exit (range 16) 9022 | -6/Factory | Build established: Messiah-Gunner 9228 | -6/Factory | Identified exit to Lower Caves 9334 | -6/Factory | Terminal network hard line cut 9529 | -6/Factory | Build established: Messiah-Tank 10169 | -6/Factory | Discovered exit to Factory (range 16) 10736 | -6/Factory | First assault squad dispatched 11039 | -6/Factory | Lost 3 parts (1u2w) 11255 | -6/Factory | Discovered new exit (range 16) 11273 | -6/Factory | Entered Extension 11310 | -6/Extension | Build established: Messiah-Gunner 11318 | -6/Extension | Disrupted transfer network 11354 | -6/Extension | Zion Fire squad teleported in 11501 | -6/Extension | Retrieved Zion intel report: Guard Positions 11504 | -6/Extension | Rescued A7 11518 | -6/Extension | Energy Cycler disabled 11518 | -6/Extension | Rescued a captive Derelict 11519 | -6/Extension | Rescued a captive Derelict 11519 | -6/Extension | Rescued a captive Derelict 11520 | -6/Extension | Rescued a captive Derelict 11520 | -6/Extension | Rescued a captive Derelict 11522 | -6/Extension | Rescued a captive Derelict 11523 | -6/Extension | Rescued a captive Derelict 11542 | -6/Extension | Retrieved Zion intel report: Unaware Schematics 11596 | -6/Extension | Retrieved Zion intel report: Prototype Stockpiles 11601 | -6/Extension | Spotted B-75 Beast 11614 | -6/Extension | Spotted B-75 Beast 11644 | -6/Extension | Allies destroyed B-75 Beast 11659 | -6/Extension | Allies destroyed B-75 Beast 11666 | -6/Extension | Discovered exit to Factory (range 14) 11684 | -6/Extension | Zion Melee Resupply teleported in 11715 | -6/Extension | Retrieved Zion intel report: Emergency Access 11776 | -6/Extension | Lost 3 parts (2n1w) 11919 | -6/Extension | Retrieved Zion intel report: Component Schematics 11999 | -6/Extension | Retrieved Zion intel report: Depthwide Sectors/0 12033 | -6/Extension | Retrieved Zion intel report: Unaware Schematics 12081 | -6/Extension | Discovered exit to Factory (range 10) 12083 | -6/Extension | Discovered new exit (range 6) 12119 | -6/Extension | Entered Cetus 12119 | -6/Cetus | Accompanied by 9 allies 12124 | -6/Cetus | Acquired a Cetus Manufacturing Module code from A7 12136 | -6/Cetus | Spotted Cetus Guard 12136 | -6/Cetus | Spotted Cetus Guard 12138 | -6/Cetus | Spotted Cetus Guard 12141 | -6/Cetus | Spotted Cetus Guard 12144 | -6/Cetus | Allies destroyed Cetus Guard 12151 | -6/Cetus | Allies destroyed Cetus Guard 12151 | -6/Cetus | Allies destroyed Cetus Guard 12153 | -6/Cetus | Allies destroyed Cetus Guard 12216 | -6/Cetus | Started Cetus Manufacturing Module 12224 | -6/Cetus | Zion Hacker squad teleported in 12241 | -6/Cetus | Manufactured an Enhanced Grunt 12250 | -6/Cetus | Retrieved Zion intel report: Unaware Analyses 12266 | -6/Cetus | Manufactured an Enhanced Grunt 12291 | -6/Cetus | Manufactured an Enhanced Grunt 12303 | -6/Cetus | Escorted A7 to Cetus Mainframe 12316 | -6/Cetus | Manufactured an Enhanced Grunt 12341 | -6/Cetus | Manufactured an Enhanced Grunt 12359 | -6/Cetus | Retrieved Zion intel report: Main Access 12421 | -6/Cetus | Discovered new exit (range 15) 12462 | -6/Cetus | Entered Archives 12462 | -6/Archives | Accompanied by 16 allies 12467 | -6/Archives | Received a hacking code to weaken MAIN.C 12486 | -6/Archives | Unable to access archive contents 12508 | -6/Archives | Unable to access archive contents 12524 | -6/Archives | Unable to access archive contents 12526 | -6/Archives | Discovered new exit (range 16) 12537 | -6/Archives | Unable to access archive contents 12588 | -6/Archives | Discovered new exit (range 15) 12630 | -6/Archives | Discovered exit to Factory (range 13) 12704 | -6/Archives | Build established: Messiah-Tank 12757 | -6/Archives | Entered Hub_04(d) 12757 | -6/Hub_04(d) | Accompanied by 13 allies 12765 | -6/Hub_04(d) | Discovered exit to Factory (range 14) 12902 | -6/Hub_04(d) | Spotted B-75 Beast 12913 | -6/Hub_04(d) | Allies destroyed B-75 Beast 12922 | -6/Hub_04(d) | Retrieved Zion intel report: Unaware Analyses 13062 | -6/Hub_04(d) | Core integrity fell below 50% 13071 | -6/Hub_04(d) | Discovered exit to Factory (range 3) 13170 | -6/Hub_04(d) | Retrieved Zion intel report: Component Stockpiles 13244 | -6/Hub_04(d) | Garrison activated, responded to threat 13247 | -6/Hub_04(d) | Discovered exit to Factory (range 16) 13345 | -6/Hub_04(d) | Network Hub disabled 13345 | -6/Hub_04(d) | Discovered exit to Factory (range 15) 13384 | -6/Hub_04(d) | Spotted Lightning 13385 | -6/Hub_04(d) | Spotted Lightning 13386 | -6/Hub_04(d) | Spotted Lightning 13393 | -6/Hub_04(d) | System corruption reached 10% 13399 | -6/Hub_04(d) | Spotted Lightning 13401 | -6/Hub_04(d) | Spotted Lightning 13401 | -6/Hub_04(d) | Spotted Lightning 13410 | -6/Hub_04(d) | Crushed by falling debris 13427 | -6/Hub_04(d) | Entered Factory 13427 | -5/Factory | Evolved 2 slots: Power x1, Weapon x1 13441 | -5/Factory | Lost 3 parts (1p1u1w) 13773 | -5/Factory | Discovered new exit (range 15) 13916 | -5/Factory | Local fabrication network quarantined 13954 | -5/Factory | Fabricated P-60 Hacker (x2) 14027 | -5/Factory | First assault squad dispatched 14156 | -5/Factory | Lost 5 parts (1n3u1w) 14167 | -5/Factory | Zion hero teleported in (7V-RTL) 14453 | -5/Factory | Discovered new exit (range 8) 14466 | -5/Factory | Retrieved Zion intel report: Active Garrisons 14467 | -5/Factory | Zion Light squad teleported in 14814 | -5/Factory | Terminal network hard line cut 14899 | -5/Factory | Found Prototype Protection 14899 | -5/Factory | Identified Zio. Weapon Casing 15177 | -5/Factory | Discovered new exit (range 13) 15207 | -5/Factory | Entered Upper Caves 15207 | -5/Upper Caves | Accompanied by 1 ally 15705 | -5/Upper Caves | Found Alien Artifact 15705 | -5/Upper Caves | Identified Dimensional Node Initializer 15705 | -5/Upper Caves | Initialized slip node 15893 | -5/Upper Caves | Learned location of Armory (-4) 15966 | -5/Upper Caves | Lost 4 parts (1p2u1w) 16138 | -5/Upper Caves | Learned Factory interactive machine intel 16161 | -5/Upper Caves | Identified exit to Upper Caves 16236 | -5/Upper Caves | Entered another Upper Caves area 16236 | -5/Upper Caves | Accompanied by 1 ally 16625 | -5/Upper Caves | Discovered new exit (range 11) 16675 | -5/Upper Caves | Entered Zhirov 16675 | -5/Zhirov | Accompanied by 1 ally 16675 | -5/Zhirov | Discovered new exit (range 3) 16707 | -5/Zhirov | Met Zhirov 16738 | -5/Zhirov | Found Alien Artifact 16738 | -5/Zhirov | Identified Integrated Reactor 16738 | -5/Zhirov | Installed Integrated Reactor, increased core energy generation (+2%) 16756 | -5/Zhirov | Found Alien Artifact 16756 | -5/Zhirov | Identified Transdimensional Reconstructor 16756 | -5/Zhirov | Warped through subspace 16900 | -5/Zhirov | Learned location of Quarantine (-3) 16900 | -5/Zhirov | Learned location of Testing (-2) 16900 | -5/Zhirov | Learned location of Command (-1) 16912 | -5/Zhirov | Zhirov requested help retrieving the SGEMP Prototype 17183 | -5/Zhirov | Entered Proximity Caves 17183 | -4/Proximity Caves | Accompanied by 1 ally 17409 | -4/Proximity Caves | Learned 4 Research zone layouts 17432 | -4/Proximity Caves | Learned Research terminal intel 18025 | -4/Proximity Caves | Attracted the attention of an 0b10 checkpoint 18394 | -4/Proximity Caves | Discovered new exit (range 10) 18479 | -4/Proximity Caves | Entered Factory 18479 | -4/Factory | Accompanied by 1 ally 18479 | -4/Factory | Evolved 2 slots: Utility x2 18480 | -4/Factory | Loaded intel: 45 interactive machine locations 18725 | -4/Factory | Retrieved Zion intel report: Main Access 18725 | -4/Factory | Identified exit to Research 18726 | -4/Factory | Zion Heavy squad teleported in 18852 | -4/Factory | Build established: Messiah-Gunner 19229 | -4/Factory | First assault squad dispatched 19281 | -4/Factory | Zion Heavy squad teleported in 19541 | -4/Factory | Retrieved Zion intel report: Component Stockpiles 19542 | -4/Factory | Zion Light squad teleported in 19614 | -4/Factory | Found Adv. Powered Armor 19777 | -4/Factory | High security lockdown imminent 19821 | -4/Factory | Entered Research 19821 | -3/Research | Accompanied by 5 allies 19821 | -3/Research | Evolved 2 slots: Utility x2 19822 | -3/Research | Identified exit to Quarantine 19823 | -3/Research | Loaded intel: 19 terminal locations 19917 | -3/Research | Spotted B-86 Titan 19927 | -3/Research | Destroyed B-86 Titan 20015 | -3/Research | Zion Hacker squad teleported in 20183 | -3/Research | Fabricated Imp. Arc Thrower (x1) 20210 | -3/Research | Zion Fire squad teleported in 20321 | -3/Research | First assault squad dispatched 20333 | -3/Research | Retrieved Zion intel report: Trap Installations 20348 | -3/Research | Spotted B-86 Titan 20362 | -3/Research | Allies destroyed B-86 Titan 20440 | -3/Research | Lost 3 parts (1u2w) 20440 | -3/Research | Found Adv. Powered Armor 20510 | -3/Research | High security lockdown imminent 20526 | -3/Research | Garrison activated, responded to threat 20565 | -3/Research | Lost 3 parts (3w) 20571 | -3/Research | Destroyed 10 combat bots 20590 | -3/Research | High security lockdown engaged 20637 | -3/Research | Self-destructed Last Messages --------------- 20627_ Zio. Composite Leg II blown off. 20627_ Hardcell Cannon blown off. 20627_ E-15 Imp destroyed. 20628_ Penetrated by Slug. 20628_ Slug penetrates Wall. 20628_ Penetrated by Slug. 20629_ Slug penetrates Wall. 20629_ Adv. Cooling System destroyed. 20630_ P-80 Master resets P-80 Master, system corruption cleaned. 20630_ Slug penetrates Wall. 20631_ System corrupted: Matter fused (-5). 20631_ Slug penetrates Wall. 20631_ Lgt. Quantum Reactor destroyed. 20631_ Penetrated by Slug. 20631_ Fusion Reactor destroyed. 20631_ Slug penetrates Wall. 20632_ Railgun destroyed. 20637_ Myomer Leg destroyed. 20637_ Penetrated by Slug. 20637_ Zio. Biocell destroyed. Map ----- +----------------------------------------------------+ | ?????????????????????"???????????????????????????? | | ?????????????????????????????????????????????????? | | ?????????????????????????????????????????????????? | | ^????????????????????????????????????????????????? | | ?????????????????????????????????????????????????? | | ?????????????????????????????????????????????????? | | #???????????????????????????????????????????????? | | #???????????????????????????????????????????????? | | #???????????????????????????????????????????????? | | ???????????????????????????????????????????????? | | ???????????????????????????????????????????????? | | ???????????????????????????????????? * ????????? | | ##??????????????????????????????????? [% ???? | | ##????????????????????????"""""???#?#% ??? | | ##????????????????????????""T""??? # %% ??? | | ##???????????????????????????????? # %* #?? | | ##???????????????????????????????? # !% ### | | ##???????????????????????????????## # =%* # | | ##???????????????????????????????? % # | | ##???????????????????????????????## " = # | | #????????????????????????????????? %%" %= # | | #????????????????????????????????? " *[%! # ! | | #????????????????#####??????????? % !%|%! # | | ?????????????????# = ##########!;# Y !=!* *!### | | ?????????????????# =Yp% h %%=[!%] | | ???????????????# ; % @ ]pY % !%%=[ | | ?????????????????# * YY ^*% =%%!= | | ?????????????????# ############## %[! % | | ?????????????????#####?????########## = = | | ???????????????????????????# # | [ | | ???????????????????????????# ! # | | ???????????????????????????# " %= %% | | ???????????????????????????# !+ | | ???????????????????????????# # | | ???????????????????????????# "# #### | | | ???????????????????????????# ## #?## | | ???????????????????????????################# | | ?????????????????????????????????????????# # | | ?????????????????????????????????????????# #=% | | ?????????????????????????????????????????### T | | ??????????????????????????????????????? + " | | ?????????????????????????????????????? #####+#"## | | ????????????????????????????????????????? ? | | ????????????????????????????????????????# ? | | ????????????????????????????????????????#= | | ????????????????????????????????????????# ? | | ????????????????????????????????????????# ???? | | ????????????????????????????????????????# ???? | | ????????????????????????????????????""????? ????? | | ????????????????????????????????????""???????????? | +----------------------------------------------------+ Best States ------------- Heat Dissipation 122 Coolant Potential 80 Energy Generation 53 Energy Capacity 1385 Matter Stores 300 Matter Capacity 300 Sight Range 16 Robot Scan Range 20 Terrain Scan Density 10 Base Temperature (-) 200 Armor Coverage 800 Resistance: TH 30 Propulsion Shielding 90 Weapon Shielding 100 Evasion (%) 40 Targeting Accuracy 16 Armor Integrity Analysis 50 Particle Charging 20 Defensive Hacking 10 Item Schematics ----------------- Beamcaster | -7/Zion | Free Riot Gun | -7/Zion | Free Barrage Gun | -7/Zion | Free Hvy. Battle Rifle | -7/Zion | Free Bore Cannon | -7/Zion | Free Adv. Terrain Scanner | -6/Extension | Z-intel Shock Rifle | -6/Extension | Z-intel Recoil Stabilizer | -6/Extension | Z-intel Cmb. Airjet | -6/Extension | Z-intel Adv. Melee Analysis Suite | -6/Extension | Z-intel Hacking Suite | -6/Extension | Z-intel Shock Absorption System | -6/Extension | Z-intel Drone Bay | -6/Extension | Z-intel Imp. Propulsion Shielding | -6/Extension | Z-intel Electrolaser | -6/Extension | Z-intel Airjet | -6/Extension | Z-intel Enh. Optical Array | -6/Extension | Z-intel Arm. Leg | -6/Extension | Z-intel Power Amplifier | -6/Extension | Z-intel Plasma Rifle | -6/Extension | Z-intel Imp. Power Shielding | -6/Extension | Z-intel Assault Drone Bay | -5/Zhirov | Free Exp. Heat Sink | -5/Zhirov | Free Exp. Optical Array | -5/Zhirov | Free Imp. Arc Thrower | -5/Zhirov | Free Robot Schematics ------------------ W-25 Informer | -6/Extension | Z-intel R-10 Processor | -6/Extension | Z-intel P-60 Hacker | -6/Extension | Z-intel B-48 Gladiator | -6/Extension | Z-intel T-07 Excavator | -6/Extension | Z-intel A-02 Transporter | -6/Extension | Z-intel A-15 Conveyor | -6/Extension | Z-intel R-06 Scavenger | -6/Extension | Z-intel Fabricated ------------ P-60 Hacker | x2 | -5/Factory Imp. Arc Thrower | x1 | -3/Research Alien Tech Used ----------------- Dimensional Node Initializer Integrated Reactor Transdimensional Reconstructor Achievements -------------- Adventurer Freeware Heroic Deeds It Was An Accident, I Swear Subspace Traveler The Science Guy Challenges ------------ None Game ------ Seed AbsorptionShieldNukerbomber Manual? 0 Play Time 03:38:40 Cumulative 54.5 hours Start 2019.12.25 @ 21:34:03 End 2019.12.27 @ 16:14:03 Sessions 7 Manual Loads 0 Difficulty Rogue Special Mode None Game No. 44 Rogue 44 Adventurer 0 Explorer 0 Win Type - Total 0 Types 0/0/0/0/0/0/0 Lore% 43 Gallery% 45 Achievement% 39 Wizard Run 0 Options --------- ASCII 0 Keyboard 0 Movement Mouse Keybinds 0 Fullscreen 1 Font 12/Smallcaps Map View 83x54 Tactical HUD 1 Map Filters NONE Filters NONE Steam 1 RUN: 6c8b6b8d-5540-4474-b21a-6f02774b797a